[Event "*** Titled Tuesday Blitz"]
[Site "Chess.com"]
[Date "2020.05.12"]
[Round "10"]
[White "Konovalova_Vera"]
[Black "salomez"]
[Result "1/2-1/2"]
[WhiteElo "2121"]
[BlackElo "2240"]
[TimeControl "180+1"]
[EndTime "11:49:10 PDT"]
[Termination "Game drawn by agreement"]

1. d4 {[%clk 0:03:00.7]} 1... Nf6 {[%clk 0:03:00.3]} 2. Nf3 {[%clk 0:02:58.7]}
2... g6 {[%clk 0:03:00.1]} 3. e3 {[%clk 0:02:58.6]} 3... Bg7 {[%clk 0:03:00.1]}
4. Bd3 {[%clk 0:02:58.9]} 4... d5 {[%clk 0:03:01]} 5. b3 {[%clk 0:02:59]} 5...
O-O {[%clk 0:03:01.9]} 6. Bb2 {[%clk 0:02:59.1]} 6... c5 {[%clk 0:03:02.8]} 7.
Nbd2 {[%clk 0:02:59.2]} 7... cxd4 {[%clk 0:03:00.3]} 8. exd4 {[%clk 0:02:58.8]}
8... Nc6 {[%clk 0:03:01.2]} 9. O-O {[%clk 0:02:58.2]} 9... Bf5 {[%clk
0:03:01.8]} 10. Bxf5 {[%clk 0:02:57.4]} 10... gxf5 {[%clk 0:03:02.7]} 11. c4
{[%clk 0:02:46.7]} 11... e6 {[%clk 0:03:03.6]} 12. Ne5 {[%clk 0:02:44.8]} 12...
Nxe5 {[%clk 0:02:35.2]} 13. dxe5 {[%clk 0:02:43.4]} 13... Ne4 {[%clk 0:02:28.6]}
14. cxd5 {[%clk 0:02:33.9]} 14... Qxd5 {[%clk 0:02:20.5]} 15. Nxe4 {[%clk
0:02:21.2]} 15... Qxe4 {[%clk 0:02:20.2]} 16. Re1 {[%clk 0:02:14.7]} 16... Qh4
{[%clk 0:02:17.9]} 17. Qf3 {[%clk 0:02:09.4]} 17... b6 {[%clk 0:02:15.5]}
1/2-1/2

[Event "*** Titled Tuesday Blitz"]
[Site "Chess.com"]
[Date "2020.05.12"]
[Round "10"]
[White "joppie2"]
[Black "Arjun2002"]
[Result "0-1"]
[WhiteElo "2856"]
[BlackElo "2684"]
[TimeControl "180+1"]
[EndTime "11:49:13 PDT"]
[Termination "Arjun2002 won by resignation"]

1. e4 {[%clk 0:02:53.6]} 1... c5 {[%clk 0:02:59.9]} 2. Nf3 {[%clk 0:02:53.4]}
2... Nc6 {[%clk 0:03:00.1]} 3. c3 {[%clk 0:02:53.4]} 3... d5 {[%clk 0:02:57.6]}
4. exd5 {[%clk 0:02:53.4]} 4... Qxd5 {[%clk 0:02:58.5]} 5. d4 {[%clk 0:02:54.3]}
5... Bf5 {[%clk 0:02:57.8]} 6. Be3 {[%clk 0:02:53.9]} 6... Nf6 {[%clk
0:02:57.5]} 7. Na3 {[%clk 0:02:54.5]} 7... cxd4 {[%clk 0:02:49.9]} 8. Nb5 {[%clk
0:02:54.7]} 8... O-O-O {[%clk 0:02:49.6]} 9. Nbxd4 {[%clk 0:02:54.4]} 9... Ng4
{[%clk 0:02:49.7]} 10. Nxc6 {[%clk 0:02:49.7]} 10... Qxd1+ {[%clk 0:02:45.3]}
11. Rxd1 {[%clk 0:02:48.8]} 11... Rxd1+ {[%clk 0:02:45.9]} 12. Kxd1 {[%clk
0:02:49.7]} 12... Nxe3+ {[%clk 0:02:46.2]} 13. fxe3 {[%clk 0:02:50.6]} 13...
bxc6 {[%clk 0:02:46.7]} 14. Nd4 {[%clk 0:02:50.8]} 14... Bd7 {[%clk 0:02:46.2]}
15. Bc4 {[%clk 0:02:50.3]} 15... e5 {[%clk 0:02:43.1]} 16. Nf3 {[%clk
0:02:49.7]} 16... f6 {[%clk 0:02:43.3]} 17. Kc2 {[%clk 0:02:49.3]} 17... Kc7
{[%clk 0:02:43.2]} 18. e4 {[%clk 0:02:49.5]} 18... a5 {[%clk 0:02:40.8]} 19. a3
{[%clk 0:02:49.3]} 19... Bc5 {[%clk 0:02:40.5]} 20. b4 {[%clk 0:02:48.7]} 20...
Bb6 {[%clk 0:02:40.3]} 21. Nd2 {[%clk 0:02:46.4]} 21... Ra8 {[%clk 0:02:37.8]}
22. Bb3 {[%clk 0:02:46.3]} 22... axb4 {[%clk 0:02:37.2]} 23. axb4 {[%clk
0:02:47.2]} 23... Rd8 {[%clk 0:02:12.3]} 24. Nc4 {[%clk 0:02:47.7]} 24... Be6
{[%clk 0:01:56.6]} 25. Ra1 {[%clk 0:02:47.3]} 25... Bxc4 {[%clk 0:01:45.3]} 26.
Ra2 {[%clk 0:02:48.2]} 26... Bxb3+ {[%clk 0:01:44.4]} 0-1

[Event "*** Titled Tuesday Blitz"]
[Site "Chess.com"]
[Date "2020.05.12"]
[Round "10"]
[White "MarcoRiehle"]
[Black "InitiatingASC"]
[Result "1-0"]
[WhiteElo "2630"]
[BlackElo "2365"]
[TimeControl "180+1"]
[EndTime "11:49:36 PDT"]
[Termination "MarcoRiehle won by checkmate"]

1. e4 {[%clk 0:03:00.9]} 1... c5 {[%clk 0:03:00.1]} 2. a3 {[%clk 0:03:00.7]}
2... Nc6 {[%clk 0:02:59.4]} 3. b4 {[%clk 0:03:00.4]} 3... e6 {[%clk 0:02:58.2]}
4. bxc5 {[%clk 0:02:54.7]} 4... Bxc5 {[%clk 0:02:57.6]} 5. c3 {[%clk 0:02:55.2]}
5... Nf6 {[%clk 0:02:56.4]} 6. d4 {[%clk 0:02:54.5]} 6... Be7 {[%clk 0:02:56]}
7. Bd3 {[%clk 0:02:54.9]} 7... d6 {[%clk 0:02:56]} 8. f4 {[%clk 0:02:53.6]} 8...
O-O {[%clk 0:02:55.8]} 9. Nf3 {[%clk 0:02:53.6]} 9... b6 {[%clk 0:02:51]} 10.
O-O {[%clk 0:02:52.7]} 10... Bb7 {[%clk 0:02:51.4]} 11. Be3 {[%clk 0:02:48.4]}
11... Rc8 {[%clk 0:02:51.4]} 12. Nbd2 {[%clk 0:02:48]} 12... Na5 {[%clk
0:02:51.5]} 13. c4 {[%clk 0:02:45.5]} 13... d5 {[%clk 0:02:44.1]} 14. cxd5
{[%clk 0:02:43.6]} 14... exd5 {[%clk 0:02:43.4]} 15. e5 {[%clk 0:02:44]} 15...
Ne4 {[%clk 0:02:43.6]} 16. Qb1 {[%clk 0:02:32.5]} 16... Rc3 {[%clk 0:02:39.2]}
17. Re1 {[%clk 0:02:23]} 17... f5 {[%clk 0:02:24.4]} 18. exf6 {[%clk 0:02:21.2]}
18... Nxf6 {[%clk 0:02:24.4]} 19. Ne5 {[%clk 0:02:18.1]} 19... Bxa3 {[%clk
0:02:19.4]} 20. Ndf3 {[%clk 0:02:06.2]} 20... Bd6 {[%clk 0:02:13.6]} 21. Ng5
{[%clk 0:02:04.3]} 21... Rb3 {[%clk 0:01:57.1]} 22. Bxh7+ {[%clk 0:02:00.3]}
22... Kh8 {[%clk 0:01:51]} 23. Ng6# {[%clk 0:01:59.5]} 1-0

[Event "*** Titled Tuesday Blitz"]
[Site "Chess.com"]
[Date "2020.05.12"]
[Round "10"]
[White "EddieMarsalla"]
[Black "crescentmoon2411"]
[Result "0-1"]
[WhiteElo "2542"]
[BlackElo "2780"]
[TimeControl "180+1"]
[EndTime "11:49:43 PDT"]
[Termination "crescentmoon2411 won by resignation"]

1. d4 {[%clk 0:03:00.9]} 1... Nf6 {[%clk 0:02:59.6]} 2. Bg5 {[%clk 0:03:00.7]}
2... d5 {[%clk 0:02:59.2]} 3. Nd2 {[%clk 0:02:59.6]} 3... c5 {[%clk 0:02:59.2]}
4. e3 {[%clk 0:02:59.4]} 4... Nc6 {[%clk 0:02:58.9]} 5. c3 {[%clk 0:02:59.3]}
5... cxd4 {[%clk 0:02:56.2]} 6. exd4 {[%clk 0:02:58.9]} 6... Bf5 {[%clk
0:02:56.4]} 7. Qb3 {[%clk 0:02:57.7]} 7... Qd7 {[%clk 0:02:56.5]} 8. Ngf3 {[%clk
0:02:57.5]} 8... e6 {[%clk 0:02:56.7]} 9. Ne5 {[%clk 0:02:57.5]} 9... Qc7 {[%clk
0:02:56.6]} 10. Be2 {[%clk 0:02:46.9]} 10... Bd6 {[%clk 0:02:55.8]} 11. f4
{[%clk 0:02:46]} 11... Ne4 {[%clk 0:02:48.7]} 12. Nxe4 {[%clk 0:02:45.3]} 12...
Bxe4 {[%clk 0:02:49.6]} 13. O-O {[%clk 0:02:40]} 13... f6 {[%clk 0:02:46]} 14.
Nxc6 {[%clk 0:02:39.6]} 14... bxc6 {[%clk 0:02:45.5]} 15. Bh4 {[%clk 0:02:36.5]}
15... Bxf4 {[%clk 0:02:44.1]} 16. h3 {[%clk 0:02:21.7]} 16... Rb8 {[%clk
0:02:36.4]} 17. Qa3 {[%clk 0:02:17.6]} 17... Bd6 {[%clk 0:02:33.1]} 18. b4
{[%clk 0:02:17.7]} 18... O-O {[%clk 0:02:31.6]} 19. Qc1 {[%clk 0:02:17.8]} 19...
e5 {[%clk 0:02:26.8]} 20. dxe5 {[%clk 0:02:13.4]} 20... Bxe5 {[%clk 0:02:25.9]}
21. Qd2 {[%clk 0:02:13.3]} 21... c5 {[%clk 0:02:03.6]} 22. Rac1 {[%clk
0:02:08.1]} 22... cxb4 {[%clk 0:01:58.9]} 23. cxb4 {[%clk 0:02:07.2]} 23... Qb6+
{[%clk 0:01:59.1]} 24. Bf2 {[%clk 0:02:07.6]} 24... Qxb4 {[%clk 0:01:58.6]} 25.
Qxb4 {[%clk 0:02:08.5]} 25... Rxb4 {[%clk 0:01:59.4]} 26. Bc5 {[%clk 0:02:07.6]}
26... Bd4+ {[%clk 0:01:57]} 27. Bxd4 {[%clk 0:02:08.1]} 27... Rxd4 {[%clk
0:01:57.9]} 0-1

[Event "*** Titled Tuesday Blitz"]
[Site "Chess.com"]
[Date "2020.05.12"]
[Round "10"]
[White "PlayChessSimple"]
[Black "Chichin_chao"]
[Result "1-0"]
[WhiteElo "2503"]
[BlackElo "2367"]
[TimeControl "180+1"]
[EndTime "11:49:44 PDT"]
[Termination "PlayChessSimple won by resignation"]

1. e4 {[%clk 0:03:00.9]} 1... c5 {[%clk 0:02:59.2]} 2. Nf3 {[%clk 0:03:00.6]}
2... e6 {[%clk 0:02:59.4]} 3. c3 {[%clk 0:02:59.8]} 3... Nf6 {[%clk 0:02:58.6]}
4. e5 {[%clk 0:02:59.4]} 4... Nd5 {[%clk 0:02:58.6]} 5. Bc4 {[%clk 0:03:00]}
5... d6 {[%clk 0:02:57.9]} 6. d4 {[%clk 0:03:00]} 6... cxd4 {[%clk 0:02:57.5]}
7. cxd4 {[%clk 0:02:59.4]} 7... Nb6 {[%clk 0:02:46.6]} 8. Bb3 {[%clk 0:02:56.9]}
8... dxe5 {[%clk 0:02:38.5]} 9. dxe5 {[%clk 0:02:56.7]} 9... Qxd1+ {[%clk
0:02:33.6]} 10. Kxd1 {[%clk 0:02:56.8]} 10... Bd7 {[%clk 0:02:19.4]} 11. Nc3
{[%clk 0:02:50.1]} 11... Bc6 {[%clk 0:02:13.1]} 12. Ke2 {[%clk 0:02:50]} 12...
N8d7 {[%clk 0:02:11.5]} 13. Be3 {[%clk 0:02:44.4]} 13... Bxf3+ {[%clk
0:02:10.4]} 14. gxf3 {[%clk 0:02:42.5]} 14... Nxe5 {[%clk 0:02:10.6]} 15. Nb5
{[%clk 0:02:33.1]} 15... Kd7 {[%clk 0:01:55.5]} 16. Rhd1+ {[%clk 0:02:20.8]}
16... Kc8 {[%clk 0:01:51.6]} 17. Nxa7+ {[%clk 0:02:15.2]} 17... Kc7 {[%clk
0:01:41.8]} 18. Rac1+ {[%clk 0:02:06.6]} 1-0

[Event "*** Titled Tuesday Blitz"]
[Site "Chess.com"]
[Date "2020.05.12"]
[Round "10"]
[White "northridgehawk"]
[Black "MasterKroket"]
[Result "0-1"]
[WhiteElo "2247"]
[BlackElo "2415"]
[TimeControl "180+1"]
[EndTime "11:49:47 PDT"]
[Termination "MasterKroket won by checkmate"]

1. e4 {[%clk 0:03:00.4]} 1... c5 {[%clk 0:02:59.9]} 2. Nf3 {[%clk 0:02:48.1]}
2... e6 {[%clk 0:02:59.7]} 3. d4 {[%clk 0:02:49]} 3... cxd4 {[%clk 0:03:00.5]}
4. Nxd4 {[%clk 0:02:48.7]} 4... Nc6 {[%clk 0:03:01.2]} 5. Nc3 {[%clk 0:02:47.5]}
5... Qc7 {[%clk 0:03:01.6]} 6. f4 {[%clk 0:02:46.7]} 6... Nxd4 {[%clk
0:03:00.3]} 7. Qxd4 {[%clk 0:02:47.6]} 7... b6 {[%clk 0:03:00.4]} 8. e5 {[%clk
0:02:44.2]} 8... a6 {[%clk 0:02:53.4]} 9. Be3 {[%clk 0:02:43.4]} 9... Bc5 {[%clk
0:02:51]} 10. Qd2 {[%clk 0:02:42.6]} 10... Bb7 {[%clk 0:02:46.1]} 11. O-O-O
{[%clk 0:02:32.3]} 11... Bxe3 {[%clk 0:02:45.9]} 12. Qxe3 {[%clk 0:02:33.2]}
12... Ne7 {[%clk 0:02:46.4]} 13. g4 {[%clk 0:02:32.5]} 13... Bxh1 {[%clk
0:02:44.9]} 14. Ne4 {[%clk 0:02:29.6]} 14... Bxe4 {[%clk 0:02:41.8]} 15. Qxe4
{[%clk 0:02:30.5]} 15... O-O {[%clk 0:02:39.8]} 16. Bd3 {[%clk 0:02:31]} 16...
g6 {[%clk 0:02:38]} 17. h4 {[%clk 0:02:29]} 17... Qc6 {[%clk 0:02:31.6]} 18. Qe3
{[%clk 0:02:26.5]} 18... Nd5 {[%clk 0:02:30.7]} 19. Qh3 {[%clk 0:02:26.4]} 19...
Nb4 {[%clk 0:02:29.1]} 20. h5 {[%clk 0:02:25.9]} 20... Rac8 {[%clk 0:02:22.1]}
21. c3 {[%clk 0:02:25.6]} 21... Nxd3+ {[%clk 0:02:20.8]} 22. Rxd3 {[%clk
0:02:26.5]} 22... Qe4 {[%clk 0:02:18.9]} 23. Rf3 {[%clk 0:02:25]} 23... Rc5
{[%clk 0:02:12.2]} 24. Qg3 {[%clk 0:02:25.2]} 24... Qe2 {[%clk 0:02:01.2]} 25.
Rf2 {[%clk 0:02:23.2]} 25... Qe1+ {[%clk 0:02:00]} 26. Kc2 {[%clk 0:02:23.3]}
26... Rd5 {[%clk 0:02:00.1]} 27. Qf3 {[%clk 0:02:19.5]} 27... f6 {[%clk
0:01:45.8]} 28. hxg6 {[%clk 0:02:18.8]} 28... hxg6 {[%clk 0:01:42.9]} 29. Re2
{[%clk 0:02:19.1]} 29... Qd1# {[%clk 0:01:42.4]} 0-1

[Event "*** Titled Tuesday Blitz"]
[Site "Chess.com"]
[Date "2020.05.12"]
[Round "10"]
[White "Evgeny81"]
[Black "Megagigahiper3345"]
[Result "1/2-1/2"]
[WhiteElo "2720"]
[BlackElo "2538"]
[TimeControl "180+1"]
[EndTime "11:49:48 PDT"]
[Termination "Game drawn by agreement"]

1. d4 {[%clk 0:03:00.9]} 1... f5 {[%clk 0:02:58.5]} 2. g3 {[%clk 0:03:00.1]}
2... Nf6 {[%clk 0:02:57.8]} 3. Bg2 {[%clk 0:03:00.7]} 3... e6 {[%clk 0:02:58.2]}
4. c4 {[%clk 0:03:01.1]} 4... Be7 {[%clk 0:02:58.4]} 5. Nf3 {[%clk 0:03:01]}
5... O-O {[%clk 0:02:55.3]} 6. O-O {[%clk 0:03:01.5]} 6... d6 {[%clk 0:02:55.5]}
7. b3 {[%clk 0:03:01.4]} 7... Ne4 {[%clk 0:02:54.6]} 8. Bb2 {[%clk 0:03:01.5]}
8... Bf6 {[%clk 0:02:55.2]} 9. Nc3 {[%clk 0:03:00.8]} 9... Nc6 {[%clk
0:02:48.9]} 10. e3 {[%clk 0:03:00.7]} 10... Nxc3 {[%clk 0:02:27.1]} 11. Bxc3
{[%clk 0:03:00.2]} 11... e5 {[%clk 0:02:27.7]} 12. dxe5 {[%clk 0:02:50.4]} 12...
dxe5 {[%clk 0:02:27.4]} 13. Qd5+ {[%clk 0:02:49.1]} 13... Kh8 {[%clk 0:02:26]}
14. Qxd8 {[%clk 0:02:48.2]} 14... Rxd8 {[%clk 0:02:25.1]} 15. Rad1 {[%clk
0:02:48.6]} 15... Be6 {[%clk 0:02:12.4]} 16. Nd2 {[%clk 0:02:43.1]} 16... Rd3
{[%clk 0:02:01.9]} 17. Nb1 {[%clk 0:02:30]} 17... Rad8 {[%clk 0:01:56.3]} 18.
Bf3 {[%clk 0:02:21.8]} 18... Kg8 {[%clk 0:01:30.5]} 19. Be2 {[%clk 0:02:15.7]}
19... Rxd1 {[%clk 0:01:29.1]} 20. Rxd1 {[%clk 0:02:16.2]} 20... Rxd1+ {[%clk
0:01:28.2]} 21. Bxd1 {[%clk 0:02:16.5]} 1/2-1/2

[Event "*** Titled Tuesday Blitz"]
[Site "Chess.com"]
[Date "2020.05.12"]
[Round "10"]
[White "babyking1205"]
[Black "Caisachess"]
[Result "1-0"]
[WhiteElo "2489"]
[BlackElo "2331"]
[TimeControl "180+1"]
[EndTime "11:50:00 PDT"]
[Termination "babyking1205 won by resignation"]

1. e4 {[%clk 0:03:00.9]} 1... e5 {[%clk 0:02:55.7]} 2. Bc4 {[%clk 0:03:00.6]}
2... Nf6 {[%clk 0:02:54.9]} 3. d3 {[%clk 0:02:59.3]} 3... Nc6 {[%clk 0:02:54.8]}
4. Nc3 {[%clk 0:02:56.5]} 4... Na5 {[%clk 0:02:53.6]} 5. Bb3 {[%clk 0:02:55.7]}
5... Nxb3 {[%clk 0:02:53.2]} 6. axb3 {[%clk 0:02:56.6]} 6... d5 {[%clk
0:02:53.1]} 7. exd5 {[%clk 0:02:57.5]} 7... Nxd5 {[%clk 0:02:53.1]} 8. Nf3
{[%clk 0:02:58.2]} 8... f6 {[%clk 0:02:51.1]} 9. O-O {[%clk 0:02:56.7]} 9... Be7
{[%clk 0:02:46]} 10. d4 {[%clk 0:02:55.5]} 10... Nxc3 {[%clk 0:02:40.4]} 11.
bxc3 {[%clk 0:02:52.8]} 11... exd4 {[%clk 0:02:38.9]} 12. Nxd4 {[%clk
0:02:50.6]} 12... O-O {[%clk 0:02:39.3]} 13. Re1 {[%clk 0:02:49.7]} 13... Bd6
{[%clk 0:02:39.3]} 14. Qf3 {[%clk 0:02:47.9]} 14... Qd7 {[%clk 0:02:15.4]} 15.
Bf4 {[%clk 0:02:38.8]} 15... Bxf4 {[%clk 0:02:06.9]} 16. Qxf4 {[%clk 0:02:39.7]}
16... Qf7 {[%clk 0:01:56.8]} 17. Nb5 {[%clk 0:02:33.6]} 17... Bd7 {[%clk
0:01:41.2]} 18. Nxc7 {[%clk 0:02:26.8]} 18... Rac8 {[%clk 0:01:40.3]} 19. c4
{[%clk 0:02:27.4]} 19... g5 {[%clk 0:01:32.3]} 20. Qd6 {[%clk 0:02:26.9]} 20...
Bf5 {[%clk 0:01:30.5]} 21. Nd5 {[%clk 0:02:26.5]} 21... Kh8 {[%clk 0:01:21.9]}
22. Re7 {[%clk 0:02:24.8]} 22... Qg6 {[%clk 0:01:20.8]} 23. Rxb7 {[%clk
0:02:22.1]} 23... Bxc2 {[%clk 0:01:20.6]} 24. Ne7 {[%clk 0:02:21.3]} 24... Qe4
{[%clk 0:01:17.3]} 25. Nxc8 {[%clk 0:02:20]} 1-0

[Event "*** Titled Tuesday Blitz"]
[Site "Chess.com"]
[Date "2020.05.12"]
[Round "10"]
[White "SPEEDSKATER"]
[Black "Andreikka"]
[Result "0-1"]
[WhiteElo "2768"]
[BlackElo "2937"]
[TimeControl "180+1"]
[EndTime "11:50:47 PDT"]
[Termination "Andreikka won by resignation"]

1. d4 {[%clk 0:03:00.9]} 1... Nf6 {[%clk 0:02:59.5]} 2. c4 {[%clk 0:03:00.5]}
2... e6 {[%clk 0:02:59.2]} 3. Nf3 {[%clk 0:03:00.1]} 3... d5 {[%clk 0:02:58.6]}
4. Nc3 {[%clk 0:02:59.6]} 4... Bb4 {[%clk 0:02:59]} 5. Qb3 {[%clk 0:02:58.8]}
5... c5 {[%clk 0:02:58.7]} 6. dxc5 {[%clk 0:02:57.2]} 6... Nc6 {[%clk
0:02:58.4]} 7. a3 {[%clk 0:02:50.4]} 7... Bxc5 {[%clk 0:02:53.3]} 8. Bg5 {[%clk
0:02:40.8]} 8... d4 {[%clk 0:02:48.2]} 9. Ne4 {[%clk 0:02:35.5]} 9... Be7 {[%clk
0:02:48.5]} 10. Nxf6+ {[%clk 0:02:33.2]} 10... Bxf6 {[%clk 0:02:46.5]} 11. Bxf6
{[%clk 0:02:33.2]} 11... Qxf6 {[%clk 0:02:47.4]} 12. g3 {[%clk 0:02:33.5]} 12...
e5 {[%clk 0:02:45.9]} 13. Bg2 {[%clk 0:02:33.4]} 13... e4 {[%clk 0:01:50.4]} 14.
Nd2 {[%clk 0:02:31.3]} 14... e3 {[%clk 0:01:50.8]} 15. fxe3 {[%clk 0:02:31.4]}
15... O-O {[%clk 0:01:51.3]} 16. Ne4 {[%clk 0:02:24.3]} 16... Qe7 {[%clk
0:01:50.2]} 17. Kf1 {[%clk 0:02:11.3]} 17... dxe3 {[%clk 0:01:43]} 18. c5 {[%clk
0:02:06.1]} 18... Be6 {[%clk 0:01:39]} 19. Qxe3 {[%clk 0:02:04.8]} 19... Bd5
{[%clk 0:01:39]} 20. Rd1 {[%clk 0:02:01.3]} 20... Rad8 {[%clk 0:01:39.3]} 21.
Kf2 {[%clk 0:01:57.5]} 21... Rfe8 {[%clk 0:01:35.1]} 0-1

[Event "*** Titled Tuesday Blitz"]
[Site "Chess.com"]
[Date "2020.05.12"]
[Round "10"]
[White "wild_cat99"]
[Black "Firehand33"]
[Result "0-1"]
[WhiteElo "2592"]
[BlackElo "2727"]
[TimeControl "180+1"]
[EndTime "11:51:13 PDT"]
[Termination "Firehand33 won by resignation"]

1. Nf3 {[%clk 0:03:00.9]} 1... b6 {[%clk 0:02:58.5]} 2. e4 {[%clk 0:02:59.8]}
2... Bb7 {[%clk 0:02:59.1]} 3. Nc3 {[%clk 0:03:00.3]} 3... g6 {[%clk 0:02:58.9]}
4. d4 {[%clk 0:03:00.7]} 4... Bg7 {[%clk 0:02:59.8]} 5. Bd3 {[%clk 0:03:00.7]}
5... d6 {[%clk 0:02:59]} 6. O-O {[%clk 0:03:00.5]} 6... Nd7 {[%clk 0:02:59.6]}
7. Re1 {[%clk 0:03:00.6]} 7... e6 {[%clk 0:02:59.8]} 8. Ne2 {[%clk 0:02:53.7]}
8... Ne7 {[%clk 0:02:59.5]} 9. b3 {[%clk 0:02:47.4]} 9... c5 {[%clk 0:02:50.3]}
10. Bb2 {[%clk 0:02:47.3]} 10... O-O {[%clk 0:02:49]} 11. c4 {[%clk 0:02:37.7]}
11... e5 {[%clk 0:02:43.6]} 12. dxe5 {[%clk 0:02:25.5]} 12... Nxe5 {[%clk
0:02:43.4]} 13. Ng3 {[%clk 0:02:26.2]} 13... Nxf3+ {[%clk 0:02:42.7]} 14. Qxf3
{[%clk 0:02:19]} 14... Bxb2 {[%clk 0:02:42.2]} 15. Rab1 {[%clk 0:02:19.1]} 15...
Bg7 {[%clk 0:02:41.1]} 16. Qe3 {[%clk 0:02:08.5]} 16... Nc6 {[%clk 0:02:40.2]}
17. a3 {[%clk 0:02:01.7]} 17... Nd4 {[%clk 0:02:39.6]} 18. b4 {[%clk 0:01:50.6]}
18... Qh4 {[%clk 0:02:38.1]} 19. Ne2 {[%clk 0:01:48.6]} 19... Nxe2+ {[%clk
0:02:36.9]} 20. Qxe2 {[%clk 0:01:46.5]} 20... Rae8 {[%clk 0:02:34.3]} 21. bxc5
{[%clk 0:01:35.3]} 21... dxc5 {[%clk 0:02:33.1]} 22. g3 {[%clk 0:01:35.2]} 22...
Qh3 {[%clk 0:02:31.3]} 23. Qc2 {[%clk 0:01:34.3]} 23... f5 {[%clk 0:02:26.2]}
24. Bf1 {[%clk 0:01:34.2]} 24... Qh6 {[%clk 0:02:13.4]} 25. exf5 {[%clk
0:01:32.7]} 25... gxf5 {[%clk 0:02:05.7]} 26. Bg2 {[%clk 0:01:26.2]} 26... Bxg2
{[%clk 0:02:04.4]} 27. Kxg2 {[%clk 0:01:27.1]} 27... Qc6+ {[%clk 0:02:03.8]} 28.
f3 {[%clk 0:01:26.9]} 28... f4 {[%clk 0:01:46.9]} 29. Re4 {[%clk 0:01:07.8]}
29... Rxe4 {[%clk 0:01:45.6]} 30. Qxe4 {[%clk 0:01:06.8]} 30... Qxe4 {[%clk
0:01:44.9]} 31. fxe4 {[%clk 0:01:07.7]} 31... f3+ {[%clk 0:01:45.2]} 32. Kf2
{[%clk 0:01:07.8]} 32... Bd4+ {[%clk 0:01:45]} 33. Kf1 {[%clk 0:01:07.9]} 33...
f2 {[%clk 0:01:44.4]} 34. Rb3 {[%clk 0:01:07.4]} 34... Re8 {[%clk 0:01:43.9]}
35. a4 {[%clk 0:01:03.2]} 35... Rxe4 {[%clk 0:01:43.6]} 36. a5 {[%clk
0:01:01.8]} 36... Re1+ {[%clk 0:01:43.4]} 0-1

[Event "*** Titled Tuesday Blitz"]
[Site "Chess.com"]
[Date "2020.05.12"]
[Round "10"]
[White "Andrei_Belozerov"]
[Black "artooon"]
[Result "1-0"]
[WhiteElo "2612"]
[BlackElo "2719"]
[TimeControl "180+1"]
[EndTime "11:51:18 PDT"]
[Termination "Andrei_Belozerov won by checkmate"]

1. e4 {[%clk 0:03:00.9]} 1... e5 {[%clk 0:02:59.8]} 2. Nf3 {[%clk 0:03:00.2]}
2... Nc6 {[%clk 0:02:59.8]} 3. Bb5 {[%clk 0:03:00.7]} 3... Nf6 {[%clk
0:03:00.4]} 4. O-O {[%clk 0:03:00.1]} 4... Bc5 {[%clk 0:03:00.8]} 5. c3 {[%clk
0:02:59.2]} 5... a6 {[%clk 0:02:48.8]} 6. Ba4 {[%clk 0:02:58.7]} 6... Nxe4
{[%clk 0:02:47.1]} 7. d4 {[%clk 0:02:55.3]} 7... exd4 {[%clk 0:02:43.5]} 8. cxd4
{[%clk 0:02:54.8]} 8... Ba7 {[%clk 0:02:43.5]} 9. d5 {[%clk 0:02:49]} 9... Ne7
{[%clk 0:02:43.5]} 10. Qe2 {[%clk 0:02:37.7]} 10... Nf6 {[%clk 0:02:36.5]} 11.
d6 {[%clk 0:02:37.2]} 11... cxd6 {[%clk 0:02:35.5]} 12. Bg5 {[%clk 0:02:29]}
12... O-O {[%clk 0:02:35.3]} 13. Bxf6 {[%clk 0:02:28.8]} 13... gxf6 {[%clk
0:02:36.2]} 14. Nc3 {[%clk 0:02:29]} 14... Ng6 {[%clk 0:02:18.5]} 15. Nd5 {[%clk
0:02:24.1]} 15... b5 {[%clk 0:02:16.9]} 16. Bb3 {[%clk 0:02:22.5]} 16... Bb7
{[%clk 0:02:17.1]} 17. Rad1 {[%clk 0:02:20.5]} 17... Re8 {[%clk 0:02:17.1]} 18.
Qxe8+ {[%clk 0:02:15.2]} 18... Qxe8 {[%clk 0:02:16.3]} 19. Nxf6+ {[%clk
0:02:15.7]} 19... Kg7 {[%clk 0:02:17.2]} 20. Nxe8+ {[%clk 0:02:15.9]} 20... Rxe8
{[%clk 0:02:18.1]} 21. Rfe1 {[%clk 0:02:06.6]} 21... Rxe1+ {[%clk 0:02:13.1]}
22. Nxe1 {[%clk 0:02:00.4]} 22... Bc5 {[%clk 0:02:13.3]} 23. Nd3 {[%clk
0:01:57.7]} 23... Bb6 {[%clk 0:02:13.4]} 24. Nb4 {[%clk 0:01:51.1]} 24... Bc5
{[%clk 0:02:12.1]} 25. Bd5 {[%clk 0:01:46]} 25... Ne5 {[%clk 0:02:12.6]} 26.
Bxb7 {[%clk 0:01:42.1]} 26... Bxb4 {[%clk 0:02:12.1]} 27. Bxa6 {[%clk
0:01:40.3]} 27... Nc4 {[%clk 0:02:08.2]} 28. Bxb5 {[%clk 0:01:36]} 28... Nxb2
{[%clk 0:02:08.5]} 29. Rb1 {[%clk 0:01:28.3]} 29... Bc3 {[%clk 0:02:08.7]} 30.
a4 {[%clk 0:01:27.5]} 30... d5 {[%clk 0:02:08.7]} 31. a5 {[%clk 0:01:24.8]}
31... d4 {[%clk 0:02:08.5]} 32. a6 {[%clk 0:01:24.7]} 32... d3 {[%clk
0:02:07.8]} 33. a7 {[%clk 0:01:24]} 33... d2 {[%clk 0:02:07.9]} 34. a8=Q {[%clk
0:01:23.6]} 34... Nd3 {[%clk 0:02:05.6]} 35. Bxd3 {[%clk 0:01:22.6]} 35... Bb2
{[%clk 0:02:06.2]} 36. Qf3 {[%clk 0:01:20.8]} 36... Bc1 {[%clk 0:02:07.1]} 37.
Qg4+ {[%clk 0:01:20.6]} 37... Kf8 {[%clk 0:02:06.9]} 38. Rb7 {[%clk 0:01:18.8]}
38... h5 {[%clk 0:02:05.8]} 39. Qf3 {[%clk 0:01:18.2]} 39... Kg7 {[%clk
0:02:04.5]} 40. Rxd7 {[%clk 0:01:17.1]} 40... Kh8 {[%clk 0:02:05.4]} 41. Qf6+
{[%clk 0:01:12.5]} 41... Kg8 {[%clk 0:01:52.8]} 42. Rd8# {[%clk 0:01:11.3]} 1-0